Cogmind - Beta 11.1 @@@ ROGUE MODE // 2022.04.30 @ 22:52:13 Player: Okkudo Result: Destroyed by G-34 Mercenary with Small Laser Performance ------------- Evolutions (1) 500 Regions Visited (2) 400 Robots Destroyed (9) 45 Value Destroyed (234) 234 Prototype IDs (0) 0 Alien Tech Used (0) 0 Bonus (0) 0 TOTAL SCORE: 1179 Bonus ------- None Cogmind --------- Core Integrity 0/400 Matter 275/300 Energy 99/100 System Corruption 0% Temperature Cool (6) Movement Core (100) Ox1 Location -9/Materials Parts ------- > --- POWER (1) -------- (None) > --- PROPULSION (2) --- (None) > --- UTILITY (4) ------ Small Storage Unit > --- WEAPON (2) ------- (None) > --- INVENTORY (8) ---- Light Treads Compact Wheel Peak State ------------ > --- POWER ------------ Light Ion Engine > --- PROPULSION ------- Light Treads Light Treads > --- UTILITY ---------- Small Storage Unit Huge Storage Unit > --- WEAPON ----------- Medium Laser Light Assault Rifle > --- INVENTORY -------- Compact Wheel Small Laser [Rating: 7] Favorites ----------- Power Light Ion Engine Engine Light Ion Engine Propulsion Light Treads Treads Light Treads Utility Small Storage Unit Storage Small Storage Unit Weapon Light Assault Rifle Energy Gun Particle Gun Ballistic Gun Light Assault Rifle Launcher Grenade Launcher Build | -11 -10 -9 ------- Run | Scr Mat Mat Slots Evolved 2 | . . 2 Power . | . . . Propulsion . | . . . Utility 2 | . . 2 Weapon . | . . . Parts Attached 11 | 6 4 1 Power 1 | 1 . . Engine 1 | 1 . . Core . | . . . Reactor . | . . . Propulsion 2 | 2 . . Treads 2 | 2 . . Leg . | . . . Wheel . | . . . Hover . | . . . Flight . | . . . Utility 3 | 1 2 . Device . | . . . Storage 3 | 1 2 . Processor . | . . . Hackware . | . . . Protection . | . . . Artifact . | . . . Weapon 5 | 2 2 1 Energy Gun 3 | 1 2 . Energy Cannon . | . . . Ballistic Gun 1 | 1 . . Ballistic Cannon . | . . . Launcher 1 | . . 1 Special Weapon . | . . . Impact Weapon . | . . . Slashing Weapon . | . . . Piercing Weapon . | . . . Special Melee Weapon . | . . . Unidentified Prototypes . | . . . Parts Lost 8 | . 3 5 Power 1 | . 1 . Propulsion 2 | . . 2 Utility . | . . . Weapon 5 | . 2 3 Highest Loss Streak 4 | . 2 4 To Critical Strikes . | . . . Average Slot Usage (%) 59 | . 75 43 Engine 2 | . 5 . Treads 20 | . 28 13 Storage 12 | . 14 11 Energy Gun 11 | . 13 9 Ballistic Gun 11 | . 14 9 Naked Turns . | . . . Heaviest Build 86 | 11 86 9 Greatest Support 40 | 40 40 40 Greatest Overweight (x) 2 | 1 2 2 Average Overweight (x) . | . . . Largest Inventory Capacity 25 | 8 25 8 Average Capacity 8 | 7 8 8 Most Carried 3 | 3 3 3 Average Carried 2 | 1 1 2 Final Capacity 8 | 8 8 8 Final Carried 2 | 2 2 2 Class Distribution -------------------- 100% | Mutant Dominant Class ---------------- Mutant | -10/Materials Mutant | -9/Materials Resources | -11 -10 -9 ----------- Run | Scr Mat Mat Matter Collected 316 | 268 . 48 Remotely . | . . . Salvage Created 351 | 78 202 71 Parts 17 | . 9 8 Haulers Intercepted . | . . . Recyclers Shooed . | . . . Parts Field Recycled . | . . . Retrieved Matter . | . . . Parts Self-Destructed . | . . . Prevented . | . . . Kills | -11 -10 -9 ------- Run | Scr Mat Mat Combat Hostiles Destroyed 7 | . 4 3 Guns 5 | . 4 1 AOE 2 | . . 2 Classes Destroyed 5 | 1 1 3 Worker 1 | . . 1 Recycler 1 | 1 . . Swarmer 2 | . . 2 Grunt 4 | . 4 . Sentry 1 | . . 1 Best Kill Streak 3 | 1 2 3 Combat Bots Only 2 | . 2 2 Max Kills in Single Turn 2 | 1 1 2 Gunslinging . | . . . Exploded 1 | . . 1 Melee . | . . . Uniques/NPCs Destroyed . | . . . Combat | -11 -10 -9 -------- Run | Scr Mat Mat Damage Taken 1423 | . 709 714 Core 601 | . 197 404 Absorbed by Shields . | . . . Core Remaining (%) 60 | 100 21 . Volleys Fired 44 | 8 31 5 Largest 2 | 1 2 2 Hottest 85 | 20 70 85 Shots Fired 69 | 8 53 8 Gun 67 | 8 53 6 Cannon . | . . . Launcher 2 | . . 2 Special . | . . . Kinetic 42 | 8 31 3 Thermal 25 | . 22 3 Explosive 2 | . . 2 Electromagnetic . | . . . Robot Hit Streak 19 | 2 19 10 Robot Miss Streak 4 | 2 4 . Penetration Max . | . . . Secondary Targets . | . . . Shots Hit Robots 54 | 5 42 7 Core Hits 22 | 2 13 7 Critical Kills . | . . . Critical Parts Destroyed . | . . . Critical Strikes 1 | . 1 . Burn 1 | . 1 . Melee Attacks . | . . . Impact . | . . . Slashing . | . . . Piercing . | . . . Sneak Attacks . | . . . Combat Hostiles . | . . . Follow-up Attacks . | . . . Damage Inflicted 650 | 39 397 214 Guns 499 | 39 397 63 Cannons . | . . . Explosions 151 | . . 151 Melee . | . . . Ramming . | . . . Kinetic 249 | 39 194 16 Thermal 250 | . 203 47 Explosive 151 | . . 151 Electromagnetic . | . . . Impact . | . . . Slashing . | . . . Piercing . | . . . Highest Corruption . | . . . Average Corruption . | . . . Corruption Purged . | . . . Corruption Blocked . | . . . Overload Shots . | . . . Overflow Damage . | . . . Projectiles . | . . . Explosions . | . . . Melee . | . . . Knockbacks . | . . . Impact . | . . . Kinetic . | . . . Secondary . | . . . Self-Inflicted Damage 60 | . . 60 Shots 2 | . . 2 Rammed . | . . . Targets Rammed . | . . . Kicked . | . . . Crushed . | . . . Highest Temperature 250 | . 250 64 Average Temperature 90 | . 96 39 Received Heat Transfer 585 | . 387 198 Siege Activations . | . . . Robots Corrupted . | . . . Combat Hostiles . | . . . Parts Fried . | . . . Impact Corruptions . | . . . Robots Melted . | . . . Combat Hostiles . | . . . Parts Melted 1 | . 1 . Heat Transferred 742 | . 631 111 Parts Sabotaged . | . . . Parts Stolen . | . . . Parts Stripped . | . . . Power Chain Reactions . | . . . Missiles Intercepted . | . . . Alert | -11 -10 -9 ------- Run | Scr Mat Mat Peak Influence 177 | 5 104 177 Initial 43 | . 3 43 Average 60 | 3 54 84 Maximum Alert Level . | . . . Low Security (%) 100 | 100 100 100 Level 1 . | . . . Level 2 . | . . . Level 3 . | . . . Level 4 . | . . . Level 5 . | . . . High Security . | . . . Max Security . | . . . Squads Dispatched 2 | . . 2 Investigation . | . . . Extermination . | . . . Reinforcement 2 | . . 2 Assault . | . . . Garrison . | . . . Intercept . | . . . Searches Triggered . | . . . Construction Impeded . | . . . Haulers Reinforced . | . . . Active Scanning Responses . | . . . Cargo Convoy Interrupts . | . . . Stealth | -11 -10 -9 --------- Run | Scr Mat Mat Distress Signals 2 | . 1 1 Communications Jammed . | . . . Distress Signals . | . . . Times Spotted 21 | . 7 14 Peak Tracking Total 9 | . 6 9 Tactical Retreats 1 | . . 1 Traps | -11 -10 -9 ------- Run | Scr Mat Mat Traps Triggered . | . . . Indirectly . | . . . Trap Hack Attempts . | . . . Triggered . | . . . Disarmed . | . . . Reprogrammed . | . . . Reused . | . . . Traps Extracted . | . . . Installed . | . . . Triggered . | . . . Machines | -11 -10 -9 ---------- Run | Scr Mat Mat Machines Disabled . | . . . Max in Single Turn . | . . . Machines Sabotaged . | . . . Garrisons Compromised . | . . . Overloaded Fab Kills . | . . . Hacking | -11 -10 -9 --------- Run | Scr Mat Mat Machines Accessed 2 | . 1 1 Terminals 2 | . 1 1 Fabricators . | . . . Repair Stations . | . . . Recycling Units . | . . . Scanalyzers . | . . . Garrison Access . | . . . Total Hacks 6 | . 2 4 Successful 2 | . 1 1 Failed 4 | . 1 3 Catastrophic . | . . . Database Lockouts . | . . . Manual 4 | . . 4 Terminals 6 | . 2 4 Fabricators . | . . . Repair Stations . | . . . Recycling Units . | . . . Scanalyzers . | . . . Garrison Access . | . . . Terminal Hacks 2 | . 1 1 Branch Access Points 1 | . 1 . Zone Layout 1 | . . 1 Fabricator Hacks . | . . . Repair Station Hacks . | . . . Recycling Unit Hacks . | . . . Scanalyzer . | . . . Garrison Access Hacks . | . . . Unauthorized Hacks . | . . . Terminals . | . . . Fabricators . | . . . Repair Stations . | . . . Recycling Units . | . . . Scanalyzers . | . . . Garrison Access . | . . . Data Cores Recovered . | . . . Used . | . . . Hacking Detections 2 | . 1 1 Full Trace Events . | . . . Feedback Events . | . . . Feedback Blocked . | . . . Robot Schematics Acquired . | . . . Robots Built . | . . . Authchips . | . . . Time . | . . . Total Robot Build Rating . | . . . Part Schematics Acquired . | . . . Parts Built . | . . . Authchips . | . . . Time . | . . . Total Part Build Rating . | . . . Parts Repaired . | . . . Time . | . . . Parts Recycled . | . . . Recycled Matter . | . . . Retrieved Matter . | . . . Retrieved Components . | . . . Parts Scanalyzed . | . . . Part Schematics Acquired . | . . . Parts Damaged . | . . . Bothacking | -11 -10 -9 ------------ Run | Scr Mat Mat Used RIF Installer . | . . . Robots Hacked . | . . . Non-combat . | . . . Combat . | . . . Robot Hacks Applied . | . . . Relay Couplers Released . | . . . Fabnet Peak Effective % . | . . . Robots Rewired . | . . . Allies Hacked . | . . . Hacks Repelled . | . . . Allies | -11 -10 -9 -------- Run | Scr Mat Mat Total Allies . | . . . Largest Group . | . . . Highest-Rated Group . | . . . Highest-Rated Ally . | . . . Total Orders . | . . . Ally Attacks . | . . . Total Damage . | . . . Kills . | . . . Allies Corrupted . | . . . Allies Melted . | . . . Intel | -11 -10 -9 ------- Run | Scr Mat Mat Robot Analysis Total . | . . . Derelict Logs Recovered . | . . . Drone Launches . | . . . Drone Recoveries . | . . . Exploration | -11 -10 -9 ------------- Run | Scr Mat Mat Turns Passed 635 | 80 285 270 Spaces Moved 286 | 35 115 136 Core 11 | 4 . 7 Treads 275 | 31 115 129 Legs . | . . . Wheels . | . . . Hover . | . . . Flight . | . . . Fastest Speed 50 | 50 160 100 Average Speed 159 | 150 162 158 Slowest Speed 320 | 160 320 160 Overloaded Moves . | . . . Propulsion Burnouts . | . . . Robots Hopped . | . . . Cave-ins Triggered . | . . . Exploration Rate (%) 14 | 4 26 12 Regions Visited 2 Branch Regions . Pre-discovered Areas . | . . . Known Exits Taken . | . . . Unknown Exits Taken 2 | 1 1 . Scrap Searched . | . . . Spaces Dug . | . . . Terrain Destroyed 15 | . . 15 Melee . | . . . Projectile . | . . . AOE 15 | . . 15 Terrain Rammed . | . . . Walls Destroyed . | . . . Machines Disabled . | . . . Actions | -11 -10 -9 --------- Run | Scr Mat Mat Total 406 | 56 167 183 Wait 52 | . 12 40 Move 284 | 34 114 136 Hop . | . . . Pick Up 13 | 8 4 1 Fast Attach . | . . . Attach 11 | 6 4 1 Detach . | . . . Swap . | . . . Drop 2 | . 2 . Fire 44 | 8 31 5 Melee . | . . . Ram . | . . . Kick . | . . . Crush . | . . . Escape Stasis . | . . . Rewire . | . . . Trap . | . . . Miscellaneous . | . . . Route ------- -11/Scrapyard -10/Materials (discovered 3 exits: *Mat / Min x2) -9/Materials History --------- Turn | Location | Event 28 | -11/Scrapyard | Discovered new exit (range 15) 81 | -11/Scrapyard | Entered Materials 218 | -10/Materials | Core integrity fell below 50% 282 | -10/Materials | Identified exit to Mines 304 | -10/Materials | Build established: Mutant 361 | -10/Materials | Discovered new exit (range 3) 366 | -10/Materials | Entered another Materials area 366 | -9/Materials | Evolved 2 slots: Utility x2 618 | -9/Materials | Core integrity fell below 50% 627 | -9/Materials | Core integrity fell below 20% 636 | -9/Materials | Destroyed by G-34 Mercenary with Small Laser Last Messages --------------- 00459_ Acquired Lgt. Treads. 00461_ Acquired 48 matter. 00466_ Connecting with Terminal... 00466_ Current location identified: Materials >>Layout(Zone) Retrieving Zone 5S layout... Downloaded map data. 00467_ R-06 Scavenger collects Heat Sink. 00470_ R-06 Scavenger collects Beam Rifle. 00479_ K-01 Serf collects debris. 00512_ O-16 Technician: "IFF HANDSHAKE FAILED. SECURING TERMINAL." 00515_ ALERT: Hostiles spotted, dispatching reinforcements to Terminal M002. 00531_ T-07 Excavator is excavating. 00585_ ALERT: Hostiles spotted, dispatching reinforcements to Terminal M012. 00596_ Lgt. Treads destroyed. 00605_ Particle Gun destroyed. 00606_ Lgt. Assault Rifle destroyed. 00632_ S-10 Pest destroyed. 00634_ K-01 Serf destroyed. 00635_ Grenade Launcher destroyed. Map ----- +----------------------------------------------------+ | """ ## # # """ """???????????????????? | | ## # # ???????????????????? | | #+###### """" # # ???????????????????? | | / """" # # ???????????????????? | | ##### """" # # ???????????????????? | | ############### #########???????????????????? | | # #??????# #??????# ???????????????????? | | # #??????# #??????# ???????????????????? | | # #??????# #??????# ???????????????????? | | + """ #??????# ######## ???????????????????? | | # """ ######## # ####?????????????????? | | #### """ # # # """ + ??????????????????? | | ???# # # # """ ##???????????????????? | | ???# """ # + + """ ##???????????????????? | | ???# """ # "T" # # o ##???????????????????? | | ???# """ # """ # # + ???????????????????? | | ???# # # ###/#####???????????????????? | | ???# ######## # g ##???????????????????? | | ???######## # # ##???????????????????? | | ######????# # # ##????#??????????????? | | #????# + + ##?? #??????????????? | | ###### ]] # # g r ## #??????????????? | | + / ]] # # =s / #??????????????? | | ###### ] # ### ### ???????? | | #????############## % ##?? #######????????? | | #????????????????# @ ##????#??????????????? | | #???????########?# ##???????????????????? | | #???????# #### % ### #??????????????? | | ############## = Y +??????????????? | | = g #??????????????? | | ?????????? +??????????????? | | ???????????### #??????????????? | | ?????????????# ###############??????????????? | | ?????????????######??????????????????????????????? | | ?????????????????????????????????????????????????? | | ?????????????????????????????????????????????????? | | ?????????????????????????????????????????????????? | | ?????????????????????????????????????????????????? | | | | | | | | | | | | | | | | | | | | | | | | | +----------------------------------------------------+ Best States ------------- Heat Dissipation 28 Energy Generation 10 Energy Capacity 125 Matter Stores 300 Matter Capacity 300 Sight Range 16 Terrain Scan Density 10 Evasion (%) 40 Recoil Reduction 2 Item Schematics ----------------- None Robot Schematics ------------------ None Fabricated ------------ Nothing Alien Tech Used ----------------- None Achievements -------------- None Challenges ------------ None Game ------ Seed LightpackDecoderDiverter Manual? 0 Play Time 00:11:31 Cumulative 29.4 hours Start 2022.04.30 @ 22:32:49 End 2022.04.30 @ 22:52:13 Sessions 1 Manual Loads 0 Difficulty Rogue Special Mode None Game No. 67 Rogue 67 Adventurer 0 Explorer 0 Win Type - Total 0 Types 0/0/0/0/0/0/0/0/0 Lore% 20 Gallery% 21 Achievement% 20 Wizard Run 0 Options --------- ASCII 0 Keyboard 0 Movement Mouse Keybinds 0 Fullscreen 0 Font 12/Smallcaps Map View 83x54 Tactical HUD 1 Map Filters NONE Filters NONE Steam 1 RUN: d926072b-4a55-40f7-bf9b-e078f6b24cd7